fUST/lending_fUST_20251215
["ID","MTS","AMOUNT","RATE_DAILY","PERIOD"]
[398498587,1765754245038,500.0,0.00013699,2]
[398498588,1765754246738,182.40623931,0.00013224,2]
[398498590,1765754250015,4612.96702585,0.00014057,2]
[398498591,1765754250041,387.03297415,0.00014057,2]
[398498592,1765754265817,5000.0,0.00014057,2]
[398498593,1765754273119,4612.97702585,0.00014057,2]
[398498594,1765754273147,387.02297415,0.00014057,2]
[398498596,1765754282039,150.0,7.18e-05,2]
[398498597,1765754282435,150.0,7.522e-05,2]
[398498598,1765754282928,224.96,7.864e-05,2]
[398498599,1765754283252,299.95,8.206e-05,2]
[398498600,1765754283727,374.94,8.548e-05,2]
[398498601,1765754284119,449.92,8.89e-05,2]
[398498602,1765754284629,524.91,9.232e-05,2]
[398498604,1765754285234,599.9,9.574e-05,2]
[398498605,1765754285486,674.89,9.915e-05,2]
[398498606,1765754285892,749.87,0.00010257,2]
[398498607,1765754286797,500.0,0.00013273,2]
[398498608,1765754286900,1000.0,0.00013821,2]
[398498609,1765754288411,3913.64702585,0.00014057,2]
[398498610,1765754292445,300.0,0.00013673,2]
[398498611,1765754293320,500.0,0.00013273,2]
[398498612,1765754293380,1000.0,0.00013821,2]
[398498613,1765754293525,500.0,0.00013699,2]
[398498614,1765754293588,500.0,0.00013273,2]
[398498615,1765754293649,1000.0,0.00013821,2]
[398498616,1765754293833,500.0,0.00013699,2]
[398498617,1765754293891,500.0,0.00013699,2]
[398498618,1765754293945,461.17801766,0.00013699,2]
[398498619,1765754296217,4738.83198234,0.0001405,2]
[398498620,1765754308585,-261.16801766,0.0001405,2]
[398498621,1765754318255,5000.0,0.0001405,2]
[398498622,1765754340361,5000.0,0.0001405,2]
[398498623,1765754344243,500.0,0.00013273,2]
[398498624,1765754344333,500.0,0.00013273,2]
[398498625,1765754344364,1000.0,0.00013821,2]
[398498626,1765754347207,504.51080098,0.00013699,2]
[398498627,1765754358643,150.0,7.8e-05,2]
[398498628,1765754359410,192.75,8.172e-05,2]
[398498629,1765754359541,289.12,8.543e-05,2]
[398498630,1765754359904,385.5,8.915e-05,2]
[398498631,1765754360299,481.87,9.286e-05,2]
[398498632,1765754360724,578.25,9.657e-05,2]
[398498633,1765754360990,1000.0,0.00013821,2]
[398498634,1765754361094,500.0,0.00013273,2]
[398498635,1765754361138,674.62,0.00010029,2]
[398498636,1765754361581,771.0,0.000104,2]
[398498637,1765754362088,867.37,0.00010772,2]
[398498638,1765754362459,963.75,0.00011143,2]
[398498639,1765754363408,3777.65,0.0001405,2]
[398498640,1765754364749,500.0,0.00013699,2]
[398498641,1765754371707,-1222.35,0.0001405,2]
[398498642,1765754385885,5000.0,0.0001405,2]
[398498643,1765754404266,500.0,0.00013699,2]
[398498644,1765754406505,500.0,0.00013273,2]
[398498645,1765754406564,1000.0,0.00013821,2]
[398498646,1765754408177,5000.0,0.0001405,2]
[398498647,1765754414724,300.0,0.00013673,2]
[398498648,1765754416512,500.0,0.00013273,2]
[398498649,1765754416541,500.0,0.00013273,2]
[398498650,1765754416579,1000.0,0.00013821,2]
[398498651,1765754416607,1000.0,0.00013821,2]
[398498652,1765754416969,500.0,0.00013699,2]
[398498653,1765754417135,500.0,0.00013699,2]
[398498656,1765754430647,5000.0,0.0001405,2]
[398498657,1765754437501,150.0,8.154e-05,2]
[398498658,1765754437951,150.0,8.542e-05,2]
[398498659,1765754438416,150.0,8.931e-05,2]
[398498660,1765754438774,150.0,9.319e-05,2]
[398498661,1765754439166,150.0,9.707e-05,2]
[398498662,1765754439866,169.38,0.00010095,2]
[398498663,1765754444899,197.61,0.00010484,2]
[398498664,1765754445298,225.84,0.00010872,2]
[398498665,1765754445764,254.07,0.0001126,2]
[398498666,1765754446125,282.3,0.00011649,2]
[398498667,1765754453229,3120.81,0.0001405,2]
[398498668,1765754458718,-1879.19,0.0001405,2]
[398498670,1765754475703,5000.0,0.0001405,2]
[398498673,1765754483758,500.0,0.00013273,2]
[398498674,1765754483807,1000.0,0.00013821,2]
[398498675,1765754491692,5000.0,0.0001405,2]
[398498676,1765754499612,5000.0,0.0001405,2]
[398498677,1765754501533,180.79109871,0.00013745,3]
[398498678,1765754511655,150.0,8.139e-05,2]
[398498679,1765754512076,150.0,8.526e-05,2]
[398498680,1765754514788,5000.0,0.0001405,2]
[398498681,1765754522589,5000.0,0.0001405,2]
[398498682,1765754523611,500.0,0.00013273,2]
[398498683,1765754527331,154.76780128,0.00013699,2]
[398498684,1765754527533,500.0,0.00013273,2]
[398498685,1765754527560,1000.0,0.00013821,2]
[398498686,1765754527641,500.0,0.00013699,2]
[398498687,1765754535898,604.19893209,0.00013273,2]
[398498688,1765754537641,300.0,0.00013673,2]
[398498689,1765754537885,500.0,0.00013273,2]
[398498690,1765754537913,500.0,0.00013273,2]
[398498691,1765754537940,5000.0,0.0001405,2]
[398498692,1765754537977,1000.0,0.00013821,2]
[398498693,1765754538054,1000.0,0.00013821,2]
[398498694,1765754538082,500.0,0.00013699,2]
[398498695,1765754538457,500.0,0.00013699,2]
[398498696,1765754540895,-621.0,0.00014057,2]
[398498697,1765754540928,-600.0,0.00014221,2]
[398498698,1765754540963,-275.40181757,0.00014233,2]
[398498699,1765754540997,-1200.0,0.00014245,2]
[398498700,1765754541029,-300.0,0.00014245,2]
[398498701,1765754541061,-300.0,0.00014245,2]
[398498702,1765754541092,-1087.0,0.00014246,2]
[398498703,1765754541125,-300.0,0.00014246,2]
[398498704,1765754541158,-156.0,0.00014246,2]
[398498705,1765754545634,5000.0,0.0001405,2]
[398498706,1765754547002,-500.0,0.00014247,2]
[398498707,1765754547035,-500.0,0.00014247,2]
[398498708,1765754547067,-1000.0,0.00014247,2]
[398498709,1765754547100,-1000.0,0.00014247,2]
[398498710,1765754547133,-1000.0,0.00014247,2]
[398498711,1765754569387,5000.0,0.0001405,2]
[398498712,1765754584261,500.0,0.00013273,2]
[398498713,1765754591779,5000.0,0.0001405,2]
[398498714,1765754614434,5000.0,0.0001405,2]
[398498715,1765754636950,5000.0,0.0001405,2]
[398498716,1765754643800,500.0,0.00013273,2]
[398498717,1765754643849,1000.0,0.00013821,2]
[398498718,1765754644110,500.0,0.00013273,2]
[398498719,1765754644661,500.0,0.00013273,2]
[398498720,1765754650277,-5000.0,0.00014223,2]
[398498721,1765754652973,5000.0,0.0001405,2]
[398498722,1765754654445,500.0,0.00013273,2]
[398498723,1765754654506,1000.0,0.00013821,2]
[398498724,1765754654563,500.0,0.00013699,2]
[398498725,1765754654687,500.0,0.00013273,2]
[398498726,1765754654737,500.0,0.00013699,2]
[398498727,1765754654782,1000.0,0.00013821,2]
[398498728,1765754655828,1000.0,0.00013821,2]
[398498729,1765754660443,5000.0,0.0001405,2]
[398498731,1765754675659,5000.0,0.0001405,2]
[398498732,1765754677214,-1000.0,0.00014247,2]
[398498733,1765754677247,-1000.0,0.00014247,2]
[398498734,1765754677277,-269.89378122,0.00014295,2]
[398498735,1765754677308,-300.0,0.00014366,2]
[398498736,1765754706976,500.0,0.00013699,2]
[398498737,1765754709259,500.0,0.00013273,2]
[398498738,1765754709316,300.0,0.00013673,2]
[398498739,1765754709393,1000.0,0.00013821,2]
[398498750,1765754766394,500.0,0.00013699,2]
[398498751,1765754774909,-600.0,0.00014221,2]
[398498752,1765754774943,-3800.01,0.00014222,2]
[398498753,1765754775475,500.0,0.00013699,2]
[398498754,1765754776428,500.0,0.00013273,2]
[398498755,1765754776472,1000.0,0.00013821,2]
[398498756,1765754781092,-1199.99,0.00014222,2]
[398498757,1765754781127,-1000.0,0.00014247,2]
[398498758,1765754781160,-1000.0,0.00014247,2]
[398498759,1765754781192,-1000.0,0.00014247,2]
[398498760,1765754781224,-300.0,0.00014365,2]
[398498761,1765754785154,1000.03,0.00014366,2]
[398498762,1765754787174,-3999.97,0.00014366,2]
[398498763,1765754807134,5000.0,0.0001405,2]
[398498764,1765754827783,500.0,0.00013699,2]
[398498765,1765754829188,5000.0,0.0001405,2]
[398498766,1765754829351,1000.0,0.00013821,2]
[398498767,1765754830232,500.0,0.00013273,2]
[398498768,1765754830305,300.0,0.00013673,2]
[398498770,1765754848164,1903.0,0.0001405,2]
[398498771,1765754852422,5000.0,0.0001405,2]
[398498773,1765754874503,5000.0,0.0001405,2]
[398498774,1765754882637,5000.0,0.0001405,2]
[398498775,1765754885854,500.0,0.00013699,2]
[398498776,1765754887002,500.0,0.00013273,2]
[398498777,1765754887033,500.0,0.00013699,2]
[398498778,1765754887091,500.0,0.00013821,2]
[398498779,1765754895306,500.0,0.00013699,2]
[398498780,1765754895435,500.0,0.00013273,2]
[398498781,1765754895564,1000.0,0.00013821,2]
[398498782,1765754898722,5000.0,0.0001405,2]
[398498783,1765754906563,5000.0,0.0001405,2]
[398498786,1765754917112,5000.01,0.000135,2]
[398498787,1765754917140,2256.21984999,0.000135,2]
[398498788,1765754922334,5000.0,0.0001405,2]
[398498790,1765754930062,5000.0,0.0001405,2]
[398498791,1765754945468,5000.0,0.0001405,2]
[398498792,1765754946458,500.0,0.00013699,2]
[398498793,1765754946933,500.0,0.00013273,2]
[398498794,1765754946990,1000.0,0.00013821,2]
[398498795,1765754947687,300.0,0.00013673,2]
[398498796,1765754953023,5000.0,0.0001405,2]
[398498797,1765754968188,5000.0,0.0001405,2]
[398498798,1765754975991,5000.0,0.0001405,2]
[398498799,1765754991419,0.01,0.0001405,2]
[398498800,1765754991453,4999.99,0.0001405,2]
[398498801,1765755005462,500.0,0.00013273,2]
[398498802,1765755005524,1000.0,0.00013821,2]
[398498803,1765755006069,500.0,0.00013699,2]
[398498804,1765755006392,500.0,0.00013273,2]
[398498805,1765755006444,1000.0,0.00013821,2]
[398498806,1765755011181,-5000.0,0.0001405,2]
[398498807,1765755014602,0.01,0.0001405,2]
[398498808,1765755014625,4999.99,0.0001405,2]
[398498809,1765755016515,500.0,0.00013273,2]
[398498810,1765755016566,1000.0,0.00013821,2]
[398498811,1765755016597,500.0,0.00013699,2]
[398498812,1765755022699,5000.0,0.0001405,2]
[398498855,1765755032652,-600.0,0.00014221,2]
[398498857,1765755032662,-7.51500014,0.00014234,2]
[398498859,1765755032673,-256.98090546,0.00014234,2]
[398498861,1765755032683,-300.0,0.00014246,2]
[398498863,1765755032692,-1000.0,0.00014247,2]
[398498865,1765755032701,-1000.0,0.00014247,2]
[398498868,1765755032711,-1000.0,0.00014247,2]
[398498870,1765755032719,-1000.0,0.00014247,2]
[398498872,1765755032729,-1000.0,0.00014247,2]
[398498874,1765755032737,-299.30877402,0.0001433,2]
[398498876,1765755032746,-500.0,0.00014364,2]
[398498878,1765755032755,-399.06136486,0.00014364,2]
[398498880,1765755032764,-500.0,0.00014364,2]
[398498882,1765755032773,-299.77441939,0.00014364,2]
[398498883,1765755032782,-500.0,0.00014364,2]
[398498885,1765755032791,-500.0,0.00014364,2]
[398498887,1765755032800,-500.0,0.00014364,2]
[398498889,1765755032809,-500.0,0.00014364,2]
[398498891,1765755032818,-610.18180148,0.00014364,2]
[398498893,1765755032827,-500.0,0.00014364,2]
[398498894,1765755032836,-500.0,0.00014364,2]
[398498895,1765755032845,-500.0,0.00014364,2]
[398498896,1765755032854,-500.0,0.00014364,2]
[398498897,1765755032862,-500.0,0.00014364,2]
[398498898,1765755032872,-507.33635328,0.00014364,2]
[398498899,1765755032881,-152.36165063,0.00014366,2]
[398498900,1765755032890,-500.0,0.00014367,2]
[398498901,1765755032898,-450.15916011,0.00014368,2]
[398498902,1765755032908,-1500.0,0.00014368,2]
[398498903,1765755032916,-1500.0,0.00014368,2]
[398498904,1765755032926,-1500.0,0.00014368,2]
[398498905,1765755032934,-1500.0,0.00014368,2]
[398498906,1765755033185,-1500.0,0.00014368,2]
[398498907,1765755033204,-344.311,0.00014515,2]
[398498908,1765755033214,-184.44,0.00014515,2]
[398498909,1765755033224,-1001.0,0.00014616,2]
[398498910,1765755033233,-3618.90700908,0.00014695,2]
[398498911,1765755033245,-988.37025698,0.00014695,2]
[398498912,1765755033262,-1777.80717079,0.00014695,2]
[398498913,1765755033274,-2109.98087107,0.00014695,2]
[398498914,1765755033284,-900.0,0.00014768,2]
[398498915,1765755033293,-500.0,0.00014789,2]
[398498916,1765755033305,-500.0,0.00014793,2]
[398498917,1765755033314,-500.0,0.00014795,2]
[398498918,1765755033323,-1000.0,0.00014795,2]
[398498919,1765755033334,-500.0,0.00014795,2]
[398498920,1765755033343,-1500.0,0.00014795,2]
[398498921,1765755033352,-1500.0,0.00014795,2]
[398498922,1765755033361,-1500.0,0.00014795,2]
[398498923,1765755033370,-487.0680474,0.00014905,2]
[398498924,1765755033379,-2000.0,0.00014916,2]
[398498925,1765755033388,-2000.0,0.00014916,2]
[398498926,1765755033398,-2000.0,0.00014916,2]
[398498927,1765755033407,-2000.0,0.00014916,2]
[398498928,1765755033417,-2000.0,0.00014916,2]
[398498929,1765755033426,-500.0,0.00014931,2]
[398498930,1765755033435,-175.89354135,0.00014956,2]
[398498931,1765755033445,-481.63375367,0.00014999,2]
[398498932,1765755033454,-300.0,0.00015,2]
[398498933,1765755033465,-500.0,0.00015,30]
[398498934,1765755033475,-500.0,0.00015,30]
[398498935,1765755033486,-500.0,0.00015004,2]
[398498936,1765755033495,-500.0,0.00015004,2]
[398498937,1765755033504,-500.0,0.00015004,2]
[398498938,1765755033514,-500.0,0.00015004,2]
[398498939,1765755033523,-500.0,0.00015004,2]
[398498940,1765755033532,-242.55510505,0.00015004,2]
[398498941,1765755033542,-500.0,0.00015022,2]
[398498942,1765755033551,-500.0,0.00015022,2]
[398498943,1765755033560,-500.0,0.00015022,2]
[398498944,1765755033570,-500.0,0.00015022,2]
[398498945,1765755033579,-500.0,0.00015022,2]
[398498946,1765755033589,-500.0,0.00015022,2]
[398498947,1765755033598,-500.0,0.00015022,2]
[398498948,1765755033607,-500.0,0.00015022,2]
[398498949,1765755033617,-500.0,0.00015022,2]
[398498950,1765755033626,-574.12855637,0.00015022,2]
[398498951,1765755033636,-500.0,0.00015022,2]
[398498952,1765755033645,-500.0,0.00015022,2]
[398498953,1765755033654,-250.0,0.00015022,2]
[398498954,1765755033663,-250.0,0.00015022,2]
[398498955,1765755033672,-250.0,0.00015022,2]
[398498956,1765755033681,-250.0,0.00015022,2]
[398498957,1765755033690,-250.0,0.00015022,2]
[398498958,1765755033699,-250.0,0.00015022,2]
[398498959,1765755033708,-250.0,0.00015022,2]
[398498960,1765755033717,-250.0,0.00015022,2]
[398498961,1765755033726,-250.0,0.00015022,2]
[398498962,1765755033735,-58688.98756098,0.00015031,2]
[398498963,1765755033747,-2997.86350935,0.00015031,2]
[398498964,1765755035174,844.37809,0.00013699,2]
[398498965,1765755038771,-617.6599536,0.0001422,2]
[398498966,1765755038783,-4382.3400464,0.0001422,2]
[398498967,1765755038792,-500.0,0.00014364,2]
[398498968,1765755038802,-500.0,0.00014364,2]
[398498969,1765755038811,-500.0,0.00014364,2]
[398498970,1765755038821,-308.88571282,0.00014364,2]
[398498971,1765755038840,-191.11428718,0.00014364,2]
[398498972,1765755038850,-500.0,0.00014364,2]
[398498973,1765755038860,-500.0,0.00014364,2]
[398498974,1765755038870,-500.0,0.00014364,2]
[398498975,1765755038880,-500.0,0.00014364,2]
[398498976,1765755038890,-500.0,0.00014364,2]
[398498977,1765755038900,-425.18539568,0.00014364,2]
[398498978,1765755038910,-500.0,0.00014364,2]
[398498979,1765755038920,-250.0,0.00015022,2]
[398498980,1765755038930,-250.0,0.00015022,2]
[398498981,1765755038939,-5440.3293926,0.00015031,2]
[398498982,1765755038960,-1668.75000003,0.00015031,2]
[398498983,1765755038972,-653.5749005,0.00015031,2]
[398498984,1765755038984,-331088.17729917,0.00015031,2]
[398498985,1765755038995,-677.57381246,0.00015031,2]
[398499056,1765755040924,-10423.99146691,0.00015031,2]
[398499058,1765755040935,-5545.07310331,0.00015031,2]
[398499139,1765755044898,-1038.06979688,0.00015031,2]
[398499140,1765755044910,-30748.65141089,0.00015031,2]
[398499150,1765755046661,-483.90748233,0.00014881,2]
[398499152,1765755046672,-4516.09251767,0.00014881,2]
[398499153,1765755046681,-117276.28830599,0.00015031,2]
[398499154,1765755046692,-516.50743114,0.00015031,2]
[398499155,1765755048083,-16922.68578884,0.00015031,2]
[398499156,1765755048094,-74351.10545132,0.00015031,2]
[398499157,1765755048105,-6870.95023051,0.00015031,2]
[398499158,1765755048117,-2544.21462767,0.00015031,2]
[398499159,1765755063579,497.62601836,0.00013699,2]
[398499160,1765755063691,413.27996227,0.00013273,2]
[398499161,1765755070120,500.0,0.00013699,2]
[398499162,1765755070373,500.0,0.00013273,2]
[398499163,1765755070423,1000.0,0.00013821,2]
[398499164,1765755071172,300.0,0.00013673,2]
[398499169,1765755103996,10000.01,0.00013872,2]
[398499170,1765755104018,65146.37839502,0.00013872,2]
[398499171,1765755108928,190.75431072,0.00013296,2]
[398499172,1765755128523,500.0,0.00013273,2]
[398499173,1765755131685,-500.0,0.00013699,2]
[398499174,1765755131719,-1000.0,0.00013821,2]
[398499175,1765755131753,-300.0,0.00013871,2]
[398499176,1765755131978,-6400.01,0.00013872,2]
[398499177,1765755134794,-10000.01,0.00013872,2]
[398499178,1765755138358,-10000.01,0.00013872,2]
[398499179,1765755138498,500.0,0.00013273,2]
[398499180,1765755151337,150.0,7.102e-05,2]
[398499181,1765755151724,150.0,7.441e-05,2]
[398499182,1765755152166,150.0,7.779e-05,2]
[398499183,1765755153023,150.0,8.117e-05,2]
[398499184,1765755153916,150.0,8.455e-05,2]
[398499185,1765755154491,153.63,8.794e-05,2]
[398499186,1765755154811,179.23,9.132e-05,2]
[398499187,1765755155227,204.84,9.47e-05,2]
[398499188,1765755155683,230.44,9.808e-05,2]
[398499189,1765755156076,256.05,0.00010146,2]
[398499192,1765755182360,165.31,0.00012,2]
[398499193,1765755182628,165.31,0.000127,2]
[398499194,1765755182947,165.31,0.000133,2]
[398499195,1765755188759,500.0,0.00013273,2]
[398499196,1765755189504,300.0,0.00013673,2]
[398499197,1765755196316,500.0,0.00013273,2]
[398499198,1765755199736,583.64,0.00013273,2]
[398499199,1765755199800,500.0,0.00013273,2]
[398499200,1765755203393,500.0,0.00013273,2]
[398499201,1765755208299,198.35836672,0.00013151,2]
[398499202,1765755221872,150.0,7.111e-05,2]
[398499203,1765755222286,150.0,7.449e-05,2]
[398499204,1765755222722,150.0,7.788e-05,2]
[398499205,1765755223188,150.0,8.127e-05,2]
[398499206,1765755223566,150.0,8.465e-05,2]
[398499207,1765755223970,150.0,8.804e-05,2]
[398499208,1765755224397,154.8,9.142e-05,2]
[398499209,1765755224825,176.92,9.481e-05,2]
[398499210,1765755225210,199.03,9.82e-05,2]
[398499211,1765755225644,221.15,0.00010158,2]
[398499212,1765755229042,182.78244466,0.00013151,2]
[398499213,1765755248543,500.0,0.00013273,2]
[398499214,1765755252352,500.0,0.00013273,2]
[398499215,1765755253081,1813.20918862,0.00013699,2]
[398499216,1765755253112,3186.79081138,0.00013699,2]
[398499217,1765755255994,500.0,0.00013273,2]
[398499218,1765755261212,5000.0,0.00013699,2]
[398499219,1765755277012,1313.21918862,0.00013699,2]
[398499220,1765755277041,3686.78081138,0.00013699,2]
[398499221,1765755284664,5000.0,0.00013699,2]
[398499222,1765755286248,-500.0,0.00013699,2]
[398499223,1765755286279,-500.0,0.00013699,2]
[398499224,1765755286310,-500.0,0.00013699,2]
[398499225,1765755286340,-500.0,0.00013699,2]
[398499226,1765755286371,-263.28598748,0.00013699,2]
[398499227,1765755300698,5000.0,0.00013699,2]
[398499228,1765755302251,159.46,0.00012,2]
[398499229,1765755307067,313.97802504,0.00013273,2]
[398499230,1765755307098,186.02197496,0.00013273,2]
[398499231,1765755307832,500.0,0.00013273,2]
[398499232,1765755308258,5000.0,0.00013699,2]
[398499233,1765755312564,500.0,0.00013273,2]
[398499234,1765755313668,300.0,0.00013673,2]
[398499235,1765755318785,425.63748361,0.00013699,2]
[398499236,1765755323457,3088.35054143,0.00013699,2]
[398499237,1765755323493,1911.64945857,0.00013699,2]
[398499240,1765755327316,500.0,0.00013273,2]
[398499243,1765755332016,5000.0,0.00013699,2]
[398499250,1765755347156,-504.3,0.000137,2]
[398499251,1765755347474,5000.0,0.00013699,2]
[398499252,1765755353540,150.0,7.083e-05,2]
[398499253,1765755355282,3841.41,0.000137,2]
[398499254,1765755355309,1158.59,0.000137,2]
[398499255,1765755362558,151.96,0.00012,2]
[398499256,1765755363420,151.96,0.000121,2]
[398499257,1765755363535,151.96,0.000123,2]
[398499258,1765755363675,151.96,0.000124,2]
[398499259,1765755363777,500.0,0.00013273,2]
[398499260,1765755363814,500.0,0.00013699,2]
[398499261,1765755363859,151.96,0.000126,2]
[398499262,1765755363947,500.0,0.00013273,2]
[398499263,1765755364141,151.96,0.000127,2]
[398499264,1765755364384,151.96,0.000129,2]
[398499265,1765755364657,151.96,0.00013,2]
[398499266,1765755365043,151.96,0.000131,2]
[398499267,1765755365387,151.96,0.000133,2]
[398499268,1765755365670,151.96,0.000134,2]
[398499269,1765755365942,179.42821177,0.000132,2]
[398499270,1765755365983,151.96,0.000136,2]
[398499271,1765755366250,151.96,0.000137,2]
[398499272,1765755366915,500.0,0.00013273,2]
[398499273,1765755370537,377.25524305,0.00013273,2]
[398499274,1765755370915,5000.0,0.00013811,2]
[398499275,1765755372708,500.0,0.00013699,2]
[398499276,1765755374403,119.80654518,0.00013273,2]
[398499277,1765755374433,380.19345482,0.00013273,2]
[398499278,1765755374666,500.0,0.00013699,2]
[398499279,1765755376155,150.0,5.2e-07,2]
[398499280,1765755377184,150.0,5.2e-07,2]
[398499281,1765755378215,150.0,5.2e-07,2]
[398499282,1765755378782,5000.0,0.00013811,2]
[398499283,1765755379282,150.0,5.2e-07,2]
[398499284,1765755380310,150.0,5.2e-07,2]
[398499285,1765755381577,150.0,5.2e-07,2]
[398499286,1765755382572,150.0,5.2e-07,2]
[398499287,1765755383757,150.0,5.2e-07,2]
[398499288,1765755393978,2919.81654518,0.00013811,2]
[398499289,1765755394008,2080.18345482,0.00013811,2]
[398499290,1765755401795,5000.0,0.00013811,2]
[398499291,1765755417014,2919.82654518,0.00013811,2]
[398499292,1765755417042,2080.17345482,0.00013811,2]
[398499293,1765755417410,388.71,7.085e-05,2]
[398499294,1765755417807,777.42,7.422e-05,2]
[398499295,1765755418245,1166.14,7.76e-05,2]
[398499296,1765755418646,1554.85,8.097e-05,2]
[398499297,1765755419260,1943.56,8.434e-05,2]
[398499298,1765755419680,2089.15654518,8.772e-05,2]
[398499299,1765755419710,243.11345482,8.772e-05,2]
[398499300,1765755420120,2720.98,9.109e-05,2]
[398499301,1765755420572,3109.7,9.447e-05,2]
[398499302,1765755420966,3498.41,9.784e-05,2]
[398499303,1765755421397,427.80654518,0.00010121,2]
[398499304,1765755421428,3459.31345482,0.00010121,2]
[398499305,1765755423025,500.0,0.00013699,2]
[398499306,1765755423410,500.0,0.00013699,2]
[398499307,1765755424642,151.93,0.00012,2]
[398499308,1765755424766,5000.0,0.00013811,2]
[398499309,1765755426342,388.76654518,0.00013273,2]
[398499310,1765755426380,111.23345482,0.00013273,2]
[398499311,1765755429891,500.0,0.00013699,2]
[398499312,1765755430862,300.0,0.00013673,2]
[398499313,1765755432176,500.0,0.00013273,2]
[398499314,1765755437627,500.0,0.00013273,2]
[398499315,1765755439940,5000.0,0.00013811,2]
[398499316,1765755440590,497.62601836,0.00013273,2]
[398499317,1765755444034,500.0,0.00013273,2]
[398499318,1765755447712,2702.38398164,0.00013811,2]
[398499319,1765755447739,2297.61601836,0.00013811,2]
[398499322,1765755463460,5000.0,0.00013811,2]
[398499323,1765755471233,2702.39398164,0.00013811,2]
[398499324,1765755471261,2297.60601836,0.00013811,2]
[398499327,1765755484190,279.68,9.99e-05,2]
[398499328,1765755485705,500.0,0.00013699,2]
[398499329,1765755486405,500.0,0.00013273,2]
[398499330,1765755486461,5000.0,0.00013811,2]
[398499331,1765755486521,500.0,0.00013699,2]
[398499332,1765755489712,500.0,0.00013273,2]
[398499333,1765755492810,422.72398164,0.00013273,2]
[398499334,1765755492839,77.27601836,0.00013273,2]
[398499335,1765755492880,500.0,0.00013273,2]
[398499336,1765755494305,500.0,0.00013699,2]
[398499337,1765755495295,296.87,7.164e-05,2]
[398499338,1765755495654,593.73,7.505e-05,2]
[398499339,1765755495730,500.0,0.00013699,2]
[398499340,1765755495885,500.0,0.00013273,2]
[398499341,1765755496089,890.6,7.847e-05,2]
[398499342,1765755496504,1187.46,8.188e-05,2]
[398499343,1765755496880,1484.33,8.529e-05,2]
[398499344,1765755497311,1781.19,8.87e-05,2]
[398499345,1765755497749,1688.55398164,9.211e-05,2]
[398499346,1765755497787,389.50601836,9.211e-05,2]
[398499347,1765755498264,2374.92,9.552e-05,2]
[398499348,1765755498572,2671.79,9.893e-05,2]
[398499349,1765755499835,2968.65,0.00010235,2]
[398499350,1765755501486,500.0,0.00013273,2]
[398499351,1765755510009,1095.14398164,0.0001381,2]
[398499352,1765755510035,3904.85601836,0.0001381,2]